bitfinex/quotes_ETHUSD_20260228
["timestamp","ask_amount","ask_price","bid_price","bid_amount"]
[1772239220859,0.84972402,1931.0,1930.7,0.87475829]
[1772239221062,2.14439419,1931.0,1930.7,0.87475829]
[1772239221352,2.14439419,1931.0,1930.6,0.87475829]
[1772239221560,0.84818516,1930.9,1930.6,0.87475829]
[1772239222771,0.84818516,1930.9,1930.6,2.16969167]
[1772239224279,0.00153886,1931.0,1930.7,0.87475829]
[1772239224871,0.00153886,1931.0,1930.9,0.87475829]
[1772239227773,0.00153886,1931.0,1930.7,7.87422641]
[1772239227983,0.00153886,1931.0,1930.7,6.99946812]
[1772239228274,0.00153886,1931.0,1930.8,0.87475829]
[1772239229887,0.00153886,1931.0,1930.8,2.16954674]
[1772239230092,0.001,1930.9,1930.8,2.16954674]
[1772239232374,1.29549088,1931.3,1930.9,0.87475829]
[1772239232577,0.84818516,1931.2,1930.9,0.87475829]
[1772239234002,0.84818516,1931.2,1930.8,1.29478845]
[1772239234168,0.84818516,1931.2,1930.8,2.16954674]
[1772239235198,0.84818516,1931.2,1930.9,0.87475829]
[1772239235798,0.84818516,1931.1,1930.7,3.98962543]
[1772239235995,0.84818516,1931.1,1930.7,3.99962543]
[1772239238274,0.84818516,1931.1,1930.8,0.87475829]
[1772239239310,0.001,1931.3,1930.8,0.87475829]
[1772239239508,0.001,1931.3,1931.0,0.87475829]
[1772239239682,0.001,1931.3,1931.1,0.87475829]
[1772239244306,0.89320614,1931.3,1931.0,3.98969227]
[1772239245521,0.001,1931.3,1931.0,3.98969227]
[1772239246317,0.001,1931.3,1931.0,3.99169227]
[1772239247435,0.89320614,1931.3,1930.9,0.86302801]
[1772239247722,0.89220614,1931.2,1931.0,1.835]
[1772239248321,0.89220614,1931.7,1931.1,0.86302801]
[1772239248495,0.89220614,1931.7,1931.0,2.69802801]
[1772239249416,0.89220614,1931.7,1931.0,3.99268979]
[1772239249719,0.89220614,1931.7,1931.2,0.86302801]
[1772239249720,2.18646996,1931.6,1931.2,0.86302801]
[1772239249920,1.29419682,1931.7,1931.2,0.86302801]
[1772239250128,0.89220614,1931.6,1931.0,2.15769397]
[1772239250316,0.89220614,1931.6,1931.1,1.835]
[1772239250909,0.89220614,1931.6,1930.9,0.86302801]
[1772239251108,0.89220614,1931.6,1930.9,2.69702801]
[1772239251825,0.89220614,1931.4,1930.9,3.99172438]
[1772239253944,0.89220614,1931.3,1931.0,0.0011]
[1772239260244,0.89220614,1931.3,1931.0,0.86412801]
[1772239260940,2.18658299,1931.5,1931.0,0.86412801]
[1772239261147,2.18658299,1931.5,1931.1,0.86302801]
[1772239264774,2.18654207,1931.5,1931.2,0.86302801]
[1772239265663,0.89220614,1931.4,1931.1,0.86302801]
[1772239266954,0.89220614,1931.4,1931.2,0.0011]
[1772239267257,0.89320614,1931.4,1931.2,0.0011]
[1772239268961,0.001,1931.4,1931.2,0.86412801]
[1772239269552,0.89220614,1931.7,1931.3,0.86302801]
[1772239269753,0.89220614,1931.7,1931.4,0.39040782]
[1772239269965,0.89220614,1931.9,1931.6,0.86302801]
[1772239270268,0.89220614,1931.9,1931.6,0.02274213]
[1772239271336,2.18627923,1931.9,1931.6,0.02274213]
[1772239271756,0.89220614,1931.9,1931.6,0.02274213]
[1772239271958,0.89220614,1931.9,1931.6,1.31700513]
[1772239272155,0.00153886,1932.0,1931.8,0.91739927]
[1772239272363,0.82008903,1932.0,1931.6,1.68467082]
[1772239272742,0.82008903,1932.0,1931.7,0.52699145]
[1772239272972,0.00153886,1932.0,1931.8,0.91768992]
[1772239273980,0.81855017,1932.4,1931.9,0.52756769]
[1772239274280,0.81855017,1932.4,1932.1,0.52756769]
[1772239274798,0.81855017,1932.4,1932.0,1.68440367]
[1772239274799,0.81855017,1932.7,1932.2,0.91797551]
[1772239274993,0.81855017,1932.7,1932.2,0.52756769]
[1772239275365,0.81855017,1932.7,1932.3,0.52785199]
[1772239275567,0.81855017,1932.7,1932.2,0.52785199]
[1772239275969,0.81855017,1932.7,1932.1,2.36614595]
[1772239276170,0.81855017,1932.5,1932.1,2.36614595]
[1772239276484,0.81855017,1932.5,1931.9,0.52814595]
[1772239278574,0.81855017,1932.4,1931.9,3.65916971]
[1772239280097,1.29372261,1932.5,1932.0,0.52925934]
[1772239280300,5.17453943,1932.6,1932.1,0.52925934]
[1772239280301,0.81855017,1932.6,1932.1,0.52925934]
[1772239280502,0.001,1932.3,1932.1,1.82315321]
[1772239281877,0.001,1932.3,1932.1,0.52925934]
[1772239282401,0.81955017,1932.3,1931.9,2.36878592]
[1772239282627,0.81955017,1932.3,1931.9,3.66284703]
[1772239282811,0.81955017,1932.3,1931.9,3.52346893]
[1772239283017,0.81955017,1932.3,1932.0,0.53005098]
[1772239284818,0.81955017,1932.3,1932.0,1.82404487]
[1772239286630,0.81955017,1932.3,1932.0,0.53005098]
[1772239287136,0.81955017,1932.3,1932.0,1.82403673]
[1772239287632,0.81855017,1932.2,1931.9,0.39040782]
[1772239287929,0.81855017,1932.2,1931.9,1.841]
[1772239289120,0.81855017,1932.1,1931.9,1.841]
[1772239289322,0.81855017,1932.1,1931.7,0.53155549]
[1772239289509,0.81855017,1932.1,1931.7,1.335]
[1772239290858,0.81855017,1932.1,1931.7,3.55163143]
[1772239291562,0.81855017,1932.1,1931.8,0.53204135]
[1772239292734,0.81855017,1932.1,1931.8,0.53304135]
[1772239296969,0.81855017,1932.1,1931.8,1.82716647]
[1772239297989,0.81855017,1931.9,1931.7,0.001]
[1772239299978,0.81855017,1931.8,1931.7,0.001]
[1772239301584,0.81855017,1931.8,1931.3,0.39040782]
[1772239301783,0.81855017,1931.8,1931.3,4.06373622]
[1772239301991,0.81855017,1931.8,1931.4,0.53586439]
[1772239302560,2.11268554,1931.8,1931.4,0.53586439]
[1772239303091,0.81855017,1931.8,1931.4,0.53586439]
[1772239303268,0.87507532,1932.1,1931.6,0.53606981]
[1772239304289,0.87507532,1931.9,1931.5,1.29429673]
[1772239304598,0.87507532,1931.9,1931.5,3.67357316]
[1772239305767,0.87507532,1931.9,1931.3,2.37946867]
[1772239306594,0.87507532,1931.7,1931.3,3.67393349]
[1772239307097,0.87507532,1931.7,1931.6,0.001]
[1772239310385,0.87707532,1932.0,1931.7,0.5374069]
[1772239311906,0.87707532,1932.0,1931.7,1.83154636]
[1772239312096,0.87707532,1932.0,1931.7,0.5374069]
[1772239318613,0.87707532,1932.0,1931.7,1.83160147]
[1772239320518,0.002,1932.0,1931.8,0.53914143]
[1772239320690,0.002,1932.0,1931.7,0.39040782]
[1772239320691,2.16882631,1932.4,1932.0,0.53914143]
[1772239320890,5.17475786,1932.5,1932.0,0.53914143]
[1772239320891,0.87507532,1932.3,1932.0,0.53914143]
[1772239321282,0.87507532,1932.4,1932.0,0.53914143]
[1772239322588,0.87507532,1932.4,1932.0,1.83311031]
[1772239323524,0.002,1932.2,1932.0,1.83311031]
[1772239326238,0.002,1932.2,1932.0,0.53914143]
[1772239327208,0.002,1932.2,1932.0,1.83313637]
[1772239328337,0.87507532,1932.1,1931.7,1.88734862]
[1772239328638,0.87707532,1932.2,1931.8,0.54040136]
[1772239329425,0.002,1932.2,1931.8,0.54040136]
[1772239330136,0.002,1932.2,1932.0,0.54069956]
[1772239330722,0.002,1932.2,1932.0,1.83465486]
[1772239332828,0.002,1932.2,1932.0,0.54069956]
[1772239333009,0.002,1932.2,1932.0,1.83468975]
[1772239333726,0.002,1932.2,1931.9,1.29401197]
[1772239333929,0.8258998,1932.2,1932.0,1.85]
[1772239335054,0.8238998,1932.6,1932.2,0.54155454]
[1772239336929,0.8238998,1932.6,1932.2,1.83540136]
[1772239337827,1.29359786,1932.6,1932.2,0.54155454]
[1772239338022,0.8238998,1932.5,1932.1,1.83683745]
[1772239340512,1.29357069,1932.7,1932.2,0.54221215]
[1772239340717,5.17397482,1932.8,1932.1,1.29488176]
[1772239340718,0.8238998,1932.8,1932.3,0.54221215]
[1772239342038,0.8238998,1932.8,1932.4,1.83619561]
[1772239342735,0.00153886,1933.0,1932.7,0.88465289]
[1772239342924,0.00153886,1933.0,1932.9,0.88465289]
[1772239344011,5.17148678,1933.7,1932.9,0.88465289]
[1772239344012,0.8238998,1933.6,1933.0,0.88465289]
[1772239344207,0.8238998,1933.6,1933.1,1.46972527]
[1772239344549,0.8238998,1933.6,1933.1,0.88465289]
[1772239345322,2.11675805,1933.7,1933.2,0.88465289]
[1772239345643,0.8238998,1933.7,1933.2,0.88465289]
[1772239346042,0.8238998,1933.5,1933.2,0.88465289]
[1772239347128,0.8238998,1933.5,1933.2,2.17782898]
[1772239347829,0.8238998,1933.6,1933.3,0.88465289]
[1772239349149,1.29285656,1933.8,1933.3,0.88465289]
[1772239349150,0.8238998,1933.8,1933.4,0.88465289]
[1772239349349,2.11669593,1933.8,1933.4,0.88465289]
[1772239349763,2.11669488,1933.8,1933.4,0.88465289]
[1772239350145,0.8238998,1933.8,1933.4,0.88465289]
[1772239350351,0.8238998,1933.8,1933.5,0.88465289]
[1772239350857,1.29273267,1933.9,1933.5,0.88465289]
[1772239351061,0.8238998,1933.8,1933.5,0.88465289]
[1772239351351,0.8238998,1933.8,1933.3,1.46972527]
[1772239351666,0.8238998,1933.8,1933.3,0.88465289]
[1772239352660,0.8238998,1933.8,1933.4,0.88465289]
[1772239355264,2.11669558,1933.8,1933.5,0.88465289]
[1772239355761,0.8238998,1933.8,1933.5,0.88465289]
[1772239355962,2.11669437,1933.8,1933.5,0.88465289]
[1772239356469,0.00153886,1934.0,1933.7,0.88465289]
[1772239359542,0.82543866,1934.0,1933.5,2.17763178]
[1772239359850,0.82543866,1934.0,1933.6,1.85]
[1772239360053,0.82543866,1934.0,1933.6,2.73465289]
[1772239360250,0.82543866,1934.0,1933.7,0.850438]
[1772239360650,0.00153886,1934.0,1933.7,0.850438]
[1772239363566,0.86498907,1934.0,1933.3,0.89457902]
[1772239365452,0.86345021,1933.8,1933.4,0.89457902]
[1772239367968,1.29285825,1933.7,1933.4,0.89457902]
[1772239368182,0.86345021,1933.6,1933.3,0.89457902]
[1772239369658,2.15629414,1933.8,1933.2,0.89457902]
[1772239369967,0.86345021,1933.7,1933.2,0.89457902]
[1772239370163,2.15631604,1933.7,1933.3,0.89457902]
[1772239370366,1.29282585,1933.8,1933.3,0.89457902]
[1772239370578,2.15627606,1933.8,1933.3,0.89457902]
[1772239370876,2.15621789,1933.9,1933.4,0.89457902]
[1772239371755,2.15769396,1934.0,1933.4,0.89457902]
[1772239372462,2.15769396,1934.0,1933.6,0.89457902]
[1772239373380,0.00153886,1934.0,1933.6,0.89457902]
[1772239373577,0.00153886,1934.0,1933.8,0.89457902]
[1772239374277,0.86498907,1934.0,1933.6,0.89457902]
[1772239374578,0.86498907,1934.0,1933.7,2.74057902]
[1772239374877,0.00153886,1934.0,1933.8,0.89457902]
[1772239375759,0.86345021,1933.9,1933.5,0.89457902]
[1772239375958,0.86345021,1933.9,1933.5,2.74057902]
[1772239376553,0.86345021,1933.8,1933.4,1.847]
[1772239376973,0.86345021,1933.8,1933.5,0.89457902]
[1772239379148,0.86498907,1934.0,1933.5,2.18756844]
[1772239379362,0.86498907,1934.0,1933.6,0.89457902]
[1772239381665,1.29272454,1933.9,1933.6,0.89457902]
[1772239382359,2.15617475,1933.9,1933.6,0.89457902]
[1772239382562,0.86345021,1933.8,1933.4,0.89557902]
[1772239382866,0.86345021,1933.8,1933.4,2.18863529]
[1772239384078,0.86345021,1933.8,1933.5,0.89457902]
[1772239384483,2.15593778,1934.3,1933.8,0.89457902]
[1772239384785,0.86345021,1934.2,1933.8,0.89457902]
[1772239385186,0.86345021,1934.2,1933.5,0.38946107]
[1772239385387,0.86345021,1934.2,1933.4,2.18863529]
[1772239385686,0.86345021,1934.0,1933.6,1.847]
[1772239385997,0.86345021,1934.0,1933.6,4.03448756]
[1772239386203,0.86345021,1934.0,1933.6,3.13990854]
[1772239386365,0.86345021,1934.0,1933.7,0.89457902]
[1772239389774,0.86345021,1934.1,1933.7,0.89457902]
[1772239390500,0.81529888,1934.3,1933.8,0.83203621]
[1772239391999,0.81529888,1934.3,1933.9,2.12476075]
[1772239392198,1.29239736,1934.4,1934.0,0.83203621]
[1772239392368,2.10769624,1934.4,1934.0,0.83203621]
[1772239393301,0.81529888,1934.3,1934.0,0.83203621]
[1772239396901,2.10776154,1934.3,1934.0,0.83203621]
[1772239398395,0.81529888,1934.2,1933.8,2.12477205]
[1772239399094,0.81529888,1934.2,1933.8,2.12482414]
[1772239399299,0.81529888,1934.2,1933.8,1.29278793]
[1772239399496,0.81529888,1934.8,1934.2,0.83203621]
[1772239399707,0.81529888,1934.7,1934.2,0.83203621]
[1772239401093,0.81529888,1934.6,1934.2,0.83203621]
[1772239401904,0.81529888,1934.8,1934.4,0.83203621]
[1772239402104,1.29357787,1935.0,1934.4,0.83203621]
[1772239402580,0.81529888,1934.9,1934.4,0.83203621]
[1772239403305,1.29212321,1934.8,1934.4,0.83203621]
[1772239403604,2.10742209,1934.8,1934.4,0.83203621]
[1772239403805,0.81529888,1934.8,1934.4,0.83203621]
[1772239404102,0.81529888,1934.8,1934.2,0.83203621]
[1772239404688,1.68156556,1934.9,1934.2,0.83203621]
[1772239405302,1.68156556,1934.9,1934.3,0.83203621]
[1772239405303,2.10748357,1934.8,1934.3,0.83203621]
[1772239405481,0.81529888,1934.7,1934.3,0.83203621]
[1772239407113,2.10740455,1934.9,1934.4,0.83203621]
[1772239407507,5.55908559,1935.0,1934.5,0.83203621]
[1772239407508,2.10885101,1935.0,1934.5,0.83203621]
[1772239408076,0.81529888,1934.9,1934.5,0.83203621]
[1772239409281,0.81529888,1934.9,1934.6,0.83203621]
[1772239409796,0.00153886,1935.0,1934.7,0.83203621]
[1772239410317,1.29353906,1935.0,1934.7,0.83203621]
[1772239410814,2.10883794,1935.0,1934.7,0.83203621]
[1772239411411,0.00153886,1935.0,1934.8,0.83203621]
[1772239415091,0.00153886,1935.0,1934.5,4.36279124]
[1772239415092,0.81683774,1935.0,1934.5,4.36279124]
[1772239415512,0.81683774,1935.0,1934.6,0.83203621]
[1772239415820,0.00153886,1935.0,1934.6,0.83203621]
[1772239415992,0.00153886,1935.0,1934.7,0.83203621]
[1772239418023,0.00153886,1935.0,1934.8,0.83203621]
[1772239418720,0.38946107,1935.5,1935.0,0.83203621]
[1772239418721,0.81529888,1935.5,1935.0,0.83203621]
[1772239419985,2.10701056,1935.5,1935.1,0.83203621]
[1772239420712,2.10696082,1935.5,1935.1,0.83203621]
[1772239420916,0.89044132,1935.4,1934.8,2.16099912]
[1772239421097,0.89044132,1935.4,1934.9,0.86888526]
[1772239422002,2.1276497,1935.3,1934.9,0.86888526]
[1772239422212,0.83586032,1935.3,1935.0,0.84476942]
[1772239424438,0.83586032,1935.3,1934.9,0.84476942]
[1772239424439,0.83586032,1935.2,1934.9,0.84476942]
[1772239424636,0.83586032,1935.2,1934.7,2.69376942]
[1772239424919,0.83586032,1935.2,1934.8,0.84476942]
[1772239427128,2.12773188,1935.2,1934.8,0.84476942]
[1772239428527,1.29187156,1935.2,1934.8,0.84476942]
[1772239428904,2.12768132,1935.3,1934.9,0.84476942]
[1772239430035,0.83586032,1935.2,1934.8,0.84476942]
[1772239430242,0.83586032,1935.2,1934.7,0.84476942]
[1772239430546,5.16700757,1935.4,1934.8,0.84476942]
[1772239430547,0.83586032,1935.4,1934.8,0.84476942]
[1772239431243,0.83586032,1935.5,1935.0,0.84476942]
[1772239431535,2.12751702,1935.5,1935.0,0.84476942]
[1772239431837,2.12751702,1935.5,1935.1,0.84476942]
[1772239432027,0.002,1935.2,1935.1,0.84476942]
[1772239437734,0.002,1935.2,1935.1,2.13669231]
[1772239438129,0.002,1935.2,1935.1,0.84476942]
[1772239441243,0.002,1935.2,1935.0,1.29193897]
[1772239441244,0.83786032,1935.2,1934.9,2.13682527]
[1772239441414,0.83786032,1935.2,1935.0,1.855]
[1772239441743,0.002,1935.2,1935.0,2.69976942]
[1772239441917,0.002,1935.2,1935.0,0.84476942]
[1772239442242,0.002,1935.2,1935.0,2.69976942]
[1772239443038,0.002,1935.2,1935.0,3.99173811]
[1772239443226,0.002,1935.2,1935.1,0.84476942]
[1772239448744,5.16584509,1935.8,1935.1,0.84476942]
[1772239448745,0.83586032,1935.7,1935.1,0.84476942]
[1772239449724,1.29145572,1935.8,1935.1,0.84476942]
[1772239449921,2.12731604,1935.8,1935.1,0.84476942]
[1772239450323,0.88089523,1935.7,1935.1,0.84476942]
[1772239451646,0.88089523,1935.7,1935.2,0.58320948]
[1772239451853,0.88089523,1935.7,1935.3,0.87740876]
[1772239453250,0.88089523,1935.6,1935.2,2.16926489]
[1772239455022,0.88089523,1935.6,1935.3,1.86]
[1772239456553,0.88089523,1935.5,1935.3,1.86]
[1772239459052,0.88089523,1935.9,1935.5,0.87740876]
[1772239459255,0.88243409,1936.0,1935.5,0.87740876]
[1772239460261,0.88243409,1936.0,1935.7,0.87740876]
[1772239461433,0.00153886,1936.0,1935.8,0.87740876]
[1772239463375,0.00153886,1936.0,1935.8,2.16885199]
[1772239463963,0.00153886,1936.0,1935.8,0.87740876]
[1772239464889,0.00153886,1936.0,1935.8,2.16885713]
[1772239465476,0.00153886,1936.0,1935.8,0.87740876]
[1772239468978,0.88243409,1936.0,1935.7,2.73940876]
[1772239469294,0.88243409,1936.0,1935.7,1.862]
[1772239470375,0.88243409,1936.0,1935.6,2.74340876]
[1772239470908,0.88089523,1935.9,1935.5,1.29160967]
[1772239471090,0.88089523,1935.8,1935.4,1.866]
[1772239471415,0.88089523,1935.8,1935.3,0.87740876]
[1772239471609,0.88089523,1935.8,1935.3,2.74340876]
[1772239472313,0.88089523,1935.8,1935.3,0.87740876]
[1772239472609,0.88089523,1935.8,1935.1,3.15891678]
[1772239472781,0.88089523,1935.7,1935.1,1.29291678]
[1772239472983,0.88089523,1935.5,1935.2,1.866]
[1772239473402,2.17241767,1935.7,1935.3,0.87740876]
[1772239473782,2.17241767,1935.7,1935.3,0.87840876]
[1772239474077,0.88089523,1935.6,1935.3,0.87840876]
[1772239474511,0.88089523,1935.6,1935.3,0.001]
[1772239475094,0.88089523,1935.5,1935.3,0.001]
[1772239477612,0.88089523,1935.4,1935.3,0.001]
[1772239479925,2.17261787,1935.4,1935.3,0.001]
[1772239481201,0.82883391,1935.3,1935.1,0.001]
[1772239481827,1.29185613,1935.2,1935.1,0.001]
[1772239482132,2.12067427,1935.3,1935.1,0.001]
[1772239483126,0.82883391,1935.2,1935.1,0.001]
[1772239483326,1.29184036,1935.3,1935.1,0.001]
[1772239483502,1.29184036,1935.3,1935.1,0.80814057]
[1772239483828,1.29184036,1935.3,1935.1,0.001]
[1772239484031,2.12067427,1935.3,1935.1,0.001]
[1772239485033,0.82883391,1935.2,1935.1,0.001]
[1772239485610,0.82883391,1935.2,1935.0,0.001]
[1772239486411,2.1207568,1935.1,1935.0,0.001]
[1772239487232,0.82883391,1935.1,1935.0,0.001]
[1772239488346,5.16636289,1935.6,1935.1,0.80714057]
[1772239488551,0.82883391,1935.5,1935.1,0.80714057]
[1772239491651,1.29358917,1935.6,1935.1,0.80714057]
[1772239491855,0.82883391,1935.5,1935.2,0.80714057]
[1772239494879,2.12052448,1935.5,1935.2,0.80714057]
[1772239502694,2.12052448,1935.5,1935.2,0.80814057]
[1772239502921,0.002,1935.4,1935.2,0.80814057]
[1772239506741,0.83083391,1935.4,1935.2,0.001]
[1772239506920,2.12261019,1935.4,1935.2,0.001]
[1772239507443,0.82883391,1935.3,1935.2,0.001]
[1772239508036,0.82883391,1935.2,1935.0,0.001]
[1772239509816,2.12073547,1935.2,1935.0,0.001]
[1772239511752,0.82737355,1935.1,1935.0,0.001]
[1772239513142,2.11929644,1935.1,1935.0,0.001]
[1772239515955,1.680737,1935.1,1934.8,0.79305595]
[1772239516124,5.99480102,1935.2,1934.8,0.79305595]
[1772239516324,0.82737355,1935.1,1934.8,0.79305595]
[1772239518032,0.82737355,1935.1,1935.0,0.001]
[1772239518233,2.11922968,1935.2,1935.0,0.001]
[1772239519975,0.82737355,1935.1,1935.0,0.001]
[1772239520120,2.11941111,1935.0,1934.8,0.001]
[1772239520442,0.82737355,1935.0,1934.8,0.001]
[1772239521932,1.29196479,1935.1,1934.9,0.79205595]
[1772239523964,1.29196479,1935.1,1934.8,0.001]
[1772239524145,2.11933834,1935.1,1934.8,0.001]
[1772239525238,2.11933834,1935.1,1934.8,0.79305595]
[1772239528680,0.82737355,1935.0,1934.8,0.001]
[1772239529467,0.82737355,1934.8,1934.4,0.79205595]
[1772239531146,2.11952715,1934.8,1934.6,0.001]
[1772239531346,0.82737355,1934.7,1934.6,0.001]
[1772239532252,1.21618766,1934.7,1934.6,0.001]
[1772239533749,2.50837766,1934.7,1934.6,0.001]
[1772239534477,2.11956355,1934.7,1934.6,0.001]
[1772239538681,2.11956355,1934.7,1934.4,0.79205595]
[1772239543084,2.11956355,1934.7,1934.5,0.001]
[1772239543287,2.12156355,1934.7,1934.5,0.001]
[1772239545688,0.002,1934.7,1934.5,0.001]
[1772239545869,0.002,1934.8,1934.5,0.001]
[1772239545870,0.002,1934.8,1934.7,0.81950055]
[1772239551683,0.002,1934.8,1934.5,2.66150055]
[1772239551867,0.002,1934.8,1934.6,0.81950055]
[1772239552191,1.29393119,1935.1,1934.6,0.38881411]
[1772239552393,1.29393119,1935.1,1934.7,0.81950055]
[1772239552815,2.11984572,1935.1,1934.7,0.81950055]
[1772239553777,2.11984228,1935.1,1934.7,0.81950055]
[1772239557213,2.11984228,1935.1,1934.8,0.001]
[1772239557399,2.11984228,1935.1,1934.8,0.82050055]
[1772239557599,0.002,1935.0,1934.8,0.82050055]
[1772239562191,0.82791453,1935.0,1934.8,0.001]
[1772239562395,0.82591453,1934.9,1934.7,0.001]
[1772239566227,2.11803774,1934.8,1934.7,0.001]
[1772239569514,0.82591453,1934.7,1934.5,0.001]
[1772239571828,2.1181438,1934.7,1934.5,0.001]
[1772239572821,0.83114744,1934.6,1934.5,0.001]
[1772239573908,2.12340423,1934.6,1934.5,0.001]
[1772239574928,0.83114744,1934.6,1934.5,0.001]
[1772239575138,2.1233852,1934.7,1934.5,0.001]
[1772239575299,5.17062845,1934.8,1934.5,0.83926729]
[1772239575300,0.002,1934.8,1934.5,0.83926729]
[1772239576026,0.002,1934.8,1934.6,0.83826729]
[1772239576332,0.002,1934.9,1934.6,0.83826729]
[1772239579822,0.83314744,1934.9,1934.5,1.29330964]
[1772239580125,0.83314744,1934.9,1934.5,2.13157693]
[1772239580346,0.83314744,1934.9,1934.6,0.83826729]
[1772239582037,0.002,1934.9,1934.6,0.83826729]
[1772239582527,0.002,1935.0,1934.7,0.83826729]
[1772239584711,0.002,1935.0,1934.7,0.83926729]
[1772239585036,0.002,1934.9,1934.7,0.83926729]
[1772239586739,0.83314744,1934.9,1934.7,0.001]
[1772239590326,2.12521099,1934.9,1934.7,0.001]
[1772239591950,0.83114744,1934.8,1934.7,0.001]
[1772239592447,0.83114744,1934.8,1934.5,0.001]
[1772239592448,0.83114744,1934.7,1934.5,0.001]
[1772239594420,2.12338961,1934.7,1934.5,0.001]
[1772239596326,0.83114744,1934.6,1934.5,0.001]
[1772239596526,2.12340423,1934.6,1934.5,0.001]
[1772239597561,2.12540423,1934.6,1934.5,0.001]
[1772239604170,0.81875058,1934.5,1934.2,0.76311605]
[1772239606339,2.11113903,1934.5,1934.2,0.76311605]
[1772239608067,5.17129439,1934.6,1934.3,0.76311605]
[1772239608068,0.002,1934.6,1934.3,0.76311605]
[1772239608276,0.002,1934.6,1934.4,0.76311605]
[1772239609564,0.002,1934.6,1934.3,1.29243814]
[1772239609884,0.002,1934.6,1934.3,0.76311605]
[1772239611154,0.002,1934.6,1934.5,0.001]
[1772239612645,0.002,1934.7,1934.6,0.76311605]
[1772239614760,0.002,1934.7,1934.5,0.76411605]
[1772239614941,0.82075058,1934.7,1934.5,0.001]
[1772239616971,0.002,1934.7,1934.5,0.76411605]
[1772239621652,1.29410013,1934.9,1934.6,0.76311605]
[1772239621653,0.002,1934.9,1934.6,0.76311605]
[1772239623577,0.002,1934.7,1934.6,0.76311605]
[1772239625150,0.82075058,1934.7,1934.5,0.001]
[1772239625550,0.002,1934.7,1934.5,0.76411605]
[1772239626168,0.002,1934.9,1934.6,0.76311605]
[1772239628781,0.002,1934.9,1934.6,1.29224199]
[1772239628982,0.002,1934.9,1934.7,0.76311605]
[1772239629558,0.81875058,1934.8,1934.5,0.001]
[1772239631668,0.83172113,1934.6,1934.0,0.00153886]
[1772239631854,0.83172113,1934.5,1934.2,0.00410001]
[1772239634686,0.83172113,1934.5,1934.1,0.79575556]
[1772239634687,2.12405947,1934.5,1934.1,0.79575556]
[1772239634853,2.12405947,1934.5,1934.1,0.79985557]
[1772239635866,0.83172113,1934.5,1934.1,2.09244577]
[1772239636393,0.83172113,1934.5,1934.1,2.08834576]
[1772239636761,0.83172113,1934.5,1934.4,0.001]
[1772239638090,1.29232359,1934.5,1934.4,0.00510001]
[1772239638274,2.12404472,1934.5,1934.4,0.00510001]
[1772239638605,0.83172113,1934.5,1934.4,0.00510001]
[1772239639063,2.12404472,1934.5,1934.4,0.00510001]
[1772239642696,0.002,1934.6,1934.4,0.80085557]
[1772239642930,0.002,1934.6,1934.4,0.79675556]
[1772239643083,0.002,1934.9,1934.5,0.79575556]
[1772239643276,1.29406887,1934.9,1934.5,0.79575556]
[1772239643476,0.83372113,1934.9,1934.5,0.79575556]
[1772239644076,2.12578261,1934.9,1934.5,0.79575556]
[1772239646001,2.12578261,1934.9,1934.4,0.001]
[1772239646002,0.83172113,1934.5,1934.4,0.001]
[1772239646305,0.83172113,1934.5,1934.2,0.79675556]
[1772239648930,0.002,1934.4,1934.2,0.79675556]
[1772239649510,0.002,1934.4,1934.2,2.08927569]
[1772239650642,0.002,1934.4,1934.3,0.79575556]
[1772239651635,0.002,1934.5,1934.3,0.79575556]
[1772239651819,0.002,1934.7,1934.4,0.79575556]
[1772239652016,0.00389999,1934.7,1934.4,0.79575556]
[1772239654040,0.00389999,1934.7,1934.5,0.79575556]
[1772239658130,0.83562112,1934.7,1934.4,2.08810891]
[1772239658946,0.00389999,1934.7,1934.5,0.79575556]
[1772239659748,0.00389999,1934.7,1934.5,2.08807761]
[1772239659950,0.00389999,1934.7,1934.5,0.79575556]
[1772239661351,0.00389999,1934.7,1934.6,0.001]
[1772239663124,0.00389999,1934.7,1934.6,0.78427834]
[1772239663537,0.002,1934.7,1934.6,0.78427834]
[1772239667456,0.002,1934.7,1934.6,0.001]
[1772239667638,0.76956329,1934.7,1934.6,0.001]
[1772239672475,0.76756329,1934.6,1934.3,2.07669507]
[1772239673038,0.00189999,1934.6,1934.4,0.78327834]
[1772239673237,0.002,1934.7,1934.4,0.78327834]
[1772239673238,0.002,1934.7,1934.5,0.78327834]
[1772239673441,0.00389999,1934.7,1934.5,0.78327834]
[1772239674676,0.00389999,1934.7,1934.6,0.78427834]
[1772239675254,0.00389999,1934.7,1934.6,0.001]
[1772239675447,0.7676633,1934.7,1934.5,0.001]
[1772239675762,0.00089999,1934.6,1934.5,0.001]
[1772239678677,0.002,1934.7,1934.5,0.78427834]
[1772239678969,0.00289999,1934.7,1934.5,0.78427834]
[1772239680877,0.00289999,1934.7,1934.5,2.07655453]
[1772239682474,0.00289999,1934.7,1934.5,0.78427834]
[1772239682778,0.76656329,1934.6,1934.5,0.001]
[1772239683470,0.7656633,1934.6,1934.3,0.001]
[1772239683674,0.76656329,1934.5,1934.3,0.001]
[1772239683870,0.7656633,1934.5,1934.3,0.001]
[1772239686652,0.76656329,1934.4,1934.0,0.7858172]
[1772239686856,0.7656633,1934.3,1934.0,2.07846989]
[1772239687058,0.7656633,1934.3,1934.0,0.7858172]
[1772239687690,0.7656633,1934.3,1934.1,0.001]
[1772239690878,0.75977005,1934.1,1933.9,0.001]
[1772239693758,0.00089999,1934.0,1933.9,0.001]
[1772239693959,0.76067004,1934.0,1933.9,0.001]
[1772239694570,0.75977005,1934.0,1933.9,0.001]
[1772239696874,0.75977005,1934.2,1933.9,0.001]
[1772239698374,0.76067004,1934.1,1933.6,1.29290074]
[1772239698691,0.76067004,1934.1,1933.6,2.0845575]
[1772239698878,0.76067004,1934.1,1933.7,0.79165676]
[1772239699081,0.00089999,1934.0,1933.7,0.79165676]
[1772239700797,0.00089999,1934.0,1933.9,0.001]
[1772239701463,0.00089999,1934.0,1933.9,0.79265676]
[1772239703173,0.002,1934.4,1934.0,0.79165676]
[1772239703379,2.05416276,1934.4,1934.0,0.79165676]
[1772239704192,0.00089999,1934.3,1934.0,0.79165676]
[1772239704498,0.00089999,1934.2,1934.0,0.79165676]
[1772239704698,0.00089999,1934.3,1934.0,0.79165676]
[1772239705895,0.00089999,1934.3,1934.1,0.79165676]
[1772239707508,0.00089999,1934.3,1934.2,0.79165676]
[1772239708571,0.00089999,1934.3,1934.0,1.29262454]
[1772239708770,0.00089999,1934.2,1933.9,3.14067253]
[1772239708997,0.76067004,1934.3,1934.0,0.79165676]
[1772239710078,0.76067004,1934.3,1934.0,2.08428971]